[Event "Titled Tuesday Blitz May 2 Early 2023"]
[White "Demchenko, Anton"]
[Black "Girish, A. Koushik"]
[WhiteFideId "4160258"]
[BlackFideId "5038448"]
[WhiteElo "2545"]
[BlackElo "2398"]
[Result "1-0"]
[Round "11"]
[TimeControl "180+2"]
[Date "2023.05.03"]
[WhiteClock "0:00:00"]
[BlackClock "0:00:00"]

1. e4 {[%clk 0:00:01]}  e5 {[%clk 0:00:01]} 2. Nf3 {[%clk 0:00:01]}  Nc6 {[%clk 0:00:01]} 3. Bc4 {[%clk 0:00:01]}  Bc5 {[%clk 0:00:01]} 4. d3 {[%clk 0:00:01]}  Nf6 {[%clk 0:00:01]} 5. Bg5 {[%clk 0:00:01]}  h6 {[%clk 0:00:01]} 6. Bh4 {[%clk 0:00:01]}  Be7 {[%clk 0:00:01]} 7. Bg3 {[%clk 0:00:01]}  d6 {[%clk 0:00:01]} 8. a4 {[%clk 0:00:01]}  O-O {[%clk 0:00:01]} 9. h3 {[%clk 0:00:01]}  g6 {[%clk 0:00:01]} 10. Nc3 {[%clk 0:00:01]}  Nh5 {[%clk 0:00:01]} 11. Bh2 {[%clk 0:00:01]}  Kh7 {[%clk 0:00:01]} 12. Nd5 {[%clk 0:00:01]}  Bf6 {[%clk 0:00:01]} 13. g4 {[%clk 0:00:01]}  Nf4 {[%clk 0:00:01]} 14. Bxf4 {[%clk 0:00:01]}  exf4 {[%clk 0:00:01]} 15. c3 {[%clk 0:00:01]}  Bg7 {[%clk 0:00:01]} 16. Rg1 {[%clk 0:00:00]}  Ne5 {[%clk 0:00:01]} 17. Bb3 {[%clk 0:00:00]}  c6 {[%clk 0:00:01]} 18. Nxf4 {[%clk 0:00:00]}  Qf6 {[%clk 0:00:01]} 19. Nxe5 {[%clk 0:00:00]}  Qxf4 {[%clk 0:00:01]} 20. Nf3 {[%clk 0:00:00]}  Be6 {[%clk 0:00:00]} 21. Rg3 {[%clk 0:00:00]}  d5 {[%clk 0:00:00]} 22. exd5 {[%clk 0:00:00]}  Bxd5 {[%clk 0:00:00]} 23. Bxd5 {[%clk 0:00:00]}  cxd5 {[%clk 0:00:00]} 24. Qd2 {[%clk 0:00:00]}  Rae8+ {[%clk 0:00:00]} 25. Kf1 {[%clk 0:00:00]}  Qc7 {[%clk 0:00:00]} 26. Rg1 {[%clk 0:00:00]}  f5 {[%clk 0:00:00]} 27. g5 {[%clk 0:00:00]}  f4 {[%clk 0:00:00]} 28. Kg2 {[%clk 0:00:00]}  Rf5 {[%clk 0:00:00]} 29. h4 {[%clk 0:00:00]}  Qd7 {[%clk 0:00:00]} 30. Kh2 {[%clk 0:00:00]}  Rf7 {[%clk 0:00:00]} 31. Rae1 {[%clk 0:00:00]}  Rxe1 {[%clk 0:00:00]} 32. Qxe1 {[%clk 0:00:00]}  h5 {[%clk 0:00:00]} 33. Qd1 {[%clk 0:00:00]}  Re7 {[%clk 0:00:00]} 34. Re1 {[%clk 0:00:00]}  Rxe1 {[%clk 0:00:00]} 35. Nxe1 {[%clk 0:00:00]}  d4 {[%clk 0:00:00]} 36. c4 {[%clk 0:00:00]}  Bf8 {[%clk 0:00:00]} 37. Nf3 {[%clk 0:00:00]}  Qg4 {[%clk 0:00:00]} 38. Qe2 {[%clk 0:00:00]}  a5 {[%clk 0:00:00]} 39. Qe4 {[%clk 0:00:00]}  Bg7 {[%clk 0:00:00]} 40. Qxb7 {[%clk 0:00:00]}  Qf5 {[%clk 0:00:00]} 41. Qe4 {[%clk 0:00:00]}  Qxe4 {[%clk 0:00:00]} 42. dxe4 {[%clk 0:00:00]}  d3 {[%clk 0:00:00]} 43. Kg2 {[%clk 0:00:00]}  Bxb2 {[%clk 0:00:00]} 44. Kf1 {[%clk 0:00:00]}  Kg7 {[%clk 0:00:00]} 45. Ke1 {[%clk 0:00:00]}  Bc3+ {[%clk 0:00:00]} 46. Kd1 {[%clk 0:00:00]}  Kf7 {[%clk 0:00:00]} 47. Ne1 {[%clk 0:00:00]}  d2 {[%clk 0:00:00]} 48. Nf3 {[%clk 0:00:00]}  Ke6 {[%clk 0:00:00]} 49. Nxd2 {[%clk 0:00:00]}  Ke5 {[%clk 0:00:00]} 50. Kc2 {[%clk 0:00:00]}  Bb4 {[%clk 0:00:00]} 51. Kd3 {[%clk 0:00:00]}  Bc5 {[%clk 0:00:00]} 52. Nf3+ {[%clk 0:00:00]}  Ke6 {[%clk 0:00:00]} 53. Ke2 {[%clk 0:00:00]}  Kd6 {[%clk 0:00:00]} 54. Ne1 {[%clk 0:00:00]}  Ke5 {[%clk 0:00:00]} 55. Nd3+ {[%clk 0:00:00]}  Kd6 {[%clk 0:00:00]} 56. Nxf4 {[%clk 0:00:00]}  Ke5 {[%clk 0:00:00]} 57. Nd3+ {[%clk 0:00:00]}  Kd6 {[%clk 0:00:00]} 58. Nxc5 {[%clk 0:00:00]}  Kxc5 {[%clk 0:00:00]} 59. Kd3 {[%clk 0:00:00]} 1-0


[Site "https://www.chess.com"]

[Event "Titled Tuesday Blitz May 2 Early 2023"]
[White "Iskusnyh, Sergei"]
[Black "Siva Mahadevan"]
[WhiteFideId "4120027"]
[BlackFideId "25043153"]
[WhiteElo "2492"]
[BlackElo "2249"]
[Result "0-1"]
[Round "11"]
[TimeControl "180+2"]
[Date "2023.05.03"]
[WhiteClock "0:00:00"]
[BlackClock "0:00:00"]

1. d4 {[%clk 0:00:01]}  Nf6 {[%clk 0:00:01]} 2. c4 {[%clk 0:00:01]}  g6 {[%clk 0:00:01]} 3. g3 {[%clk 0:00:01]}  Bg7 {[%clk 0:00:01]} 4. Bg2 {[%clk 0:00:01]}  O-O {[%clk 0:00:01]} 5. Nc3 {[%clk 0:00:01]}  d6 {[%clk 0:00:01]} 6. Nf3 {[%clk 0:00:01]}  Nbd7 {[%clk 0:00:01]} 7. O-O {[%clk 0:00:01]}  e5 {[%clk 0:00:01]} 8. e4 {[%clk 0:00:01]}  c6 {[%clk 0:00:01]} 9. h3 {[%clk 0:00:01]}  Qa5 {[%clk 0:00:01]} 10. Re1 {[%clk 0:00:01]}  exd4 {[%clk 0:00:01]} 11. Nxd4 {[%clk 0:00:01]}  Ne5 {[%clk 0:00:01]} 12. Bf1 {[%clk 0:00:01]}  Qb6 {[%clk 0:00:01]} 13. Be3 {[%clk 0:00:01]}  c5 {[%clk 0:00:01]} 14. Nc2 {[%clk 0:00:01]}  Be6 {[%clk 0:00:01]} 15. b3 {[%clk 0:00:01]}  Rfe8 {[%clk 0:00:01]} 16. f4 {[%clk 0:00:01]}  Nc6 {[%clk 0:00:01]} 17. Bf2 {[%clk 0:00:01]}  Ng4 {[%clk 0:00:01]} 18. hxg4 {[%clk 0:00:00]}  Bxc3 {[%clk 0:00:01]} 19. g5 {[%clk 0:00:00]}  Rad8 {[%clk 0:00:01]} 20. Qd3 {[%clk 0:00:00]}  Bg7 {[%clk 0:00:01]} 21. Rad1 {[%clk 0:00:00]}  Qa5 {[%clk 0:00:01]} 22. a3 {[%clk 0:00:00]}  a6 {[%clk 0:00:01]} 23. Rb1 {[%clk 0:00:00]}  Qc7 {[%clk 0:00:01]} 24. Ne3 {[%clk 0:00:00]}  Nd4 {[%clk 0:00:01]} 25. Bg2 {[%clk 0:00:00]}  b5 {[%clk 0:00:01]} 26. f5 {[%clk 0:00:00]}  Bd7 {[%clk 0:00:01]} 27. Nd5 {[%clk 0:00:00]}  Qa7 {[%clk 0:00:01]} 28. f6 {[%clk 0:00:00]}  Bf8 {[%clk 0:00:01]} 29. Red1 {[%clk 0:00:00]}  Bc6 {[%clk 0:00:01]} 30. Bxd4 {[%clk 0:00:00]}  cxd4 {[%clk 0:00:01]} 31. Qxd4 {[%clk 0:00:00]}  Qxd4+ {[%clk 0:00:01]} 32. Rxd4 {[%clk 0:00:00]}  Re5 {[%clk 0:00:01]} 33. cxb5 {[%clk 0:00:00]}  axb5 {[%clk 0:00:01]} 34. Rc1 {[%clk 0:00:00]}  Ba8 {[%clk 0:00:01]} 35. Rc7 {[%clk 0:00:00]}  Rxg5 {[%clk 0:00:01]} 36. Kf2 {[%clk 0:00:00]}  Bxd5 {[%clk 0:00:01]} 37. Rxd5 {[%clk 0:00:00]}  Rxd5 {[%clk 0:00:01]} 38. exd5 {[%clk 0:00:00]}  Ra8 {[%clk 0:00:01]} 39. Bh3 {[%clk 0:00:00]}  Rxa3 {[%clk 0:00:01]} 40. Be6 {[%clk 0:00:00]}  fxe6 {[%clk 0:00:00]} 41. dxe6 {[%clk 0:00:00]}  Ra8 {[%clk 0:00:00]} 42. f7+ {[%clk 0:00:00]}  Kg7 {[%clk 0:00:00]} 43. e7 {[%clk 0:00:00]}  Bxe7 {[%clk 0:00:00]} 44. Rxe7 {[%clk 0:00:00]}  Rf8 {[%clk 0:00:00]} 45. Ke3 {[%clk 0:00:00]}  Rxf7 {[%clk 0:00:00]} 46. Re6 {[%clk 0:00:00]}  Rf6 {[%clk 0:00:00]} 47. Re7+ {[%clk 0:00:00]}  Kh6 {[%clk 0:00:00]} 48. Rb7 {[%clk 0:00:00]}  Rf5 {[%clk 0:00:00]} 49. Rb6 {[%clk 0:00:00]}  Re5+ {[%clk 0:00:00]} 50. Kf3 {[%clk 0:00:00]}  Rc5 {[%clk 0:00:00]} 51. b4 {[%clk 0:00:00]}  Rc3+ {[%clk 0:00:00]} 52. Kf2 {[%clk 0:00:00]}  Kg5 {[%clk 0:00:00]} 53. Rxb5+ {[%clk 0:00:00]}  Kg4 {[%clk 0:00:00]} 54. Rd5 {[%clk 0:00:00]}  Rf3+ {[%clk 0:00:00]} 55. Ke2 {[%clk 0:00:00]}  Rb3 {[%clk 0:00:00]} 56. Rxd6 {[%clk 0:00:00]}  Rxb4 {[%clk 0:00:00]} 57. Rd3 {[%clk 0:00:00]}  Rb2+ {[%clk 0:00:00]} 58. Kf1 {[%clk 0:00:00]}  Kh3 {[%clk 0:00:00]} 59. Rd7 {[%clk 0:00:00]}  Kxg3 {[%clk 0:00:00]} 60. Rxh7 {[%clk 0:00:00]}  g5 {[%clk 0:00:00]} 61. Rc7 {[%clk 0:00:00]}  g4 {[%clk 0:00:00]} 62. Rc3+ {[%clk 0:00:00]}  Kh2 {[%clk 0:00:00]} 63. Rc8 {[%clk 0:00:00]}  Rb1+ {[%clk 0:00:00]} 64. Ke2 {[%clk 0:00:00]}  g3 {[%clk 0:00:00]} 65. Kf3 {[%clk 0:00:00]}  Rb3+ {[%clk 0:00:00]} 66. Ke2 {[%clk 0:00:00]}  g2 {[%clk 0:00:00]} 67. Rh8+ {[%clk 0:00:00]}  Rh3 {[%clk 0:00:00]} 0-1


[Site "https://www.chess.com"]

[Event "Titled Tuesday Blitz May 2 Early 2023"]
[White "Yu, Yangyi"]
[Black "Cherniaiev, Tykhon"]
[WhiteFideId "8603820"]
[BlackFideId "14182360"]
[WhiteElo "2783"]
[BlackElo "2450"]
[Result "1-0"]
[Round "11"]
[TimeControl "180+2"]
[Date "2023.05.03"]
[WhiteClock "0:00:00"]
[BlackClock "0:00:00"]

1. d4 {[%clk 0:00:01]}  Nf6 {[%clk 0:00:01]} 2. c4 {[%clk 0:00:01]}  e6 {[%clk 0:00:01]} 3. Nc3 {[%clk 0:00:01]}  d5 {[%clk 0:00:01]} 4. Nf3 {[%clk 0:00:01]}  Be7 {[%clk 0:00:01]} 5. Bf4 {[%clk 0:00:01]}  O-O {[%clk 0:00:01]} 6. e3 {[%clk 0:00:01]}  c5 {[%clk 0:00:01]} 7. dxc5 {[%clk 0:00:01]}  Bxc5 {[%clk 0:00:01]} 8. Qc2 {[%clk 0:00:01]}  Nc6 {[%clk 0:00:01]} 9. Rd1 {[%clk 0:00:01]}  a6 {[%clk 0:00:01]} 10. a3 {[%clk 0:00:01]}  h6 {[%clk 0:00:01]} 11. Be2 {[%clk 0:00:01]}  d4 {[%clk 0:00:01]} 12. b4 {[%clk 0:00:01]}  Ba7 {[%clk 0:00:00]} 13. c5 {[%clk 0:00:01]}  Nd5 {[%clk 0:00:00]} 14. Nxd5 {[%clk 0:00:01]}  exd5 {[%clk 0:00:00]} 15. Nxd4 {[%clk 0:00:01]}  Nxd4 {[%clk 0:00:00]} 16. Rxd4 {[%clk 0:00:01]}  a5 {[%clk 0:00:00]} 17. O-O {[%clk 0:00:01]}  axb4 {[%clk 0:00:00]} 18. axb4 {[%clk 0:00:01]}  Be6 {[%clk 0:00:00]} 19. Bf3 {[%clk 0:00:01]}  Bb8 {[%clk 0:00:00]} 20. Rfd1 {[%clk 0:00:01]}  Bxf4 {[%clk 0:00:00]} 21. exf4 {[%clk 0:00:01]}  Qf6 {[%clk 0:00:00]} 22. g3 {[%clk 0:00:01]}  Ra3 {[%clk 0:00:00]} 23. Bxd5 {[%clk 0:00:01]}  Bg4 {[%clk 0:00:00]} 24. R1d2 {[%clk 0:00:01]}  Ra1+ {[%clk 0:00:00]} 25. Kg2 {[%clk 0:00:01]}  Re8 {[%clk 0:00:00]} 26. Re4 {[%clk 0:00:00]}  Rf8 {[%clk 0:00:00]} 27. Re5 {[%clk 0:00:00]}  h5 {[%clk 0:00:00]} 28. h3 {[%clk 0:00:00]}  Bd7 {[%clk 0:00:00]} 29. Bxb7 {[%clk 0:00:00]}  Bc6+ {[%clk 0:00:00]} 30. Bxc6 {[%clk 0:00:00]}  Qxc6+ {[%clk 0:00:00]} 31. Qe4 {[%clk 0:00:00]}  Qb5 {[%clk 0:00:00]} 32. Re2 {[%clk 0:00:00]}  Ra4 {[%clk 0:00:00]} 33. c6 {[%clk 0:00:00]}  Qxb4 {[%clk 0:00:00]} 34. Qxb4 {[%clk 0:00:00]}  Rxb4 {[%clk 0:00:00]} 35. Rc2 {[%clk 0:00:00]}  Rc8 {[%clk 0:00:00]} 36. Rxh5 {[%clk 0:00:00]}  Rb6 {[%clk 0:00:00]} 37. c7 {[%clk 0:00:00]}  Rb7 {[%clk 0:00:00]} 38. Rhc5 {[%clk 0:00:00]}  Kf8 {[%clk 0:00:00]} 39. h4 {[%clk 0:00:00]}  Ke7 {[%clk 0:00:00]} 40. h5 {[%clk 0:00:00]}  Kd6 {[%clk 0:00:00]} 41. g4 {[%clk 0:00:00]}  Rb4 {[%clk 0:00:00]} 42. Kg3 {[%clk 0:00:00]}  Rb3+ {[%clk 0:00:00]} 43. f3 {[%clk 0:00:00]}  Rb1 {[%clk 0:00:00]} 44. f5 {[%clk 0:00:00]}  f6 {[%clk 0:00:00]} 45. R5c4 {[%clk 0:00:00]}  Rb7 {[%clk 0:00:00]} 46. Rc6+ {[%clk 0:00:00]}  Kd7 {[%clk 0:00:00]} 47. h6 {[%clk 0:00:00]}  gxh6 {[%clk 0:00:00]} 48. Rxf6 {[%clk 0:00:00]}  Rbxc7 {[%clk 0:00:00]} 49. Rf7+ {[%clk 0:00:00]}  Kd6 {[%clk 0:00:00]} 50. Rfxc7 {[%clk 0:00:00]}  Rxc7 {[%clk 0:00:00]} 51. Rxc7 {[%clk 0:00:00]}  Kxc7 {[%clk 0:00:00]} 52. Kh4 {[%clk 0:00:00]}  Kd6 {[%clk 0:00:00]} 53. Kh5 {[%clk 0:00:00]}  Ke7 {[%clk 0:00:00]} 54. Kxh6 {[%clk 0:00:00]}  Kf7 {[%clk 0:00:00]} 55. g5 {[%clk 0:00:00]}  Ke7 {[%clk 0:00:00]} 56. Kg7 {[%clk 0:00:00]}  Kd6 {[%clk 0:00:00]} 57. f6 {[%clk 0:00:00]}  Ke5 {[%clk 0:00:00]} 58. f7 {[%clk 0:00:00]}  Kf4 {[%clk 0:00:00]} 59. f8=Q+ {[%clk 0:00:00]}  Kxg5 {[%clk 0:00:00]} 60. Qf6+ {[%clk 0:00:00]}  Kh5 {[%clk 0:00:00]} 61. Qh6# {[%clk 0:00:00]} 1-0


[Site "https://www.chess.com"]

[Event "Titled Tuesday Blitz May 2 Early 2023"]
[White "Seo, Jung Min"]
[Black "Deac, Bogdan-Daniel"]
[WhiteFideId "1734687"]
[BlackFideId "1226380"]
[WhiteElo "2468"]
[BlackElo "2649"]
[Result "0-1"]
[Round "11"]
[TimeControl "180+2"]
[Date "2023.05.03"]
[WhiteClock "0:00:01"]
[BlackClock "0:00:00"]

1. e4 {[%clk 0:00:01]}  e5 {[%clk 0:00:01]} 2. Nf3 {[%clk 0:00:01]}  Nc6 {[%clk 0:00:01]} 3. Bb5 {[%clk 0:00:01]}  a6 {[%clk 0:00:01]} 4. Ba4 {[%clk 0:00:01]}  Nf6 {[%clk 0:00:01]} 5. O-O {[%clk 0:00:01]}  Be7 {[%clk 0:00:01]} 6. Re1 {[%clk 0:00:01]}  b5 {[%clk 0:00:01]} 7. Bb3 {[%clk 0:00:01]}  O-O {[%clk 0:00:01]} 8. a4 {[%clk 0:00:01]}  b4 {[%clk 0:00:01]} 9. d3 {[%clk 0:00:01]}  Bc5 {[%clk 0:00:01]} 10. c3 {[%clk 0:00:01]}  bxc3 {[%clk 0:00:01]} 11. bxc3 {[%clk 0:00:01]}  d6 {[%clk 0:00:01]} 12. d4 {[%clk 0:00:01]}  exd4 {[%clk 0:00:01]} 13. cxd4 {[%clk 0:00:01]}  Bb4 {[%clk 0:00:01]} 14. Bd2 {[%clk 0:00:01]}  Rb8 {[%clk 0:00:01]} 15. d5 {[%clk 0:00:01]}  Na5 {[%clk 0:00:01]} 16. Bc2 {[%clk 0:00:01]}  Bg4 {[%clk 0:00:01]} 17. Bxb4 {[%clk 0:00:01]}  Rxb4 {[%clk 0:00:01]} 18. Qd2 {[%clk 0:00:01]}  Qb8 {[%clk 0:00:01]} 19. Qc3 {[%clk 0:00:01]}  Rc4 {[%clk 0:00:00]} 20. Qxa5 {[%clk 0:00:01]}  Rxc2 {[%clk 0:00:00]} 21. Nbd2 {[%clk 0:00:01]}  Bxf3 {[%clk 0:00:00]} 22. Nxf3 {[%clk 0:00:01]}  Qa7 {[%clk 0:00:00]} 23. Nd2 {[%clk 0:00:01]}  Ng4 {[%clk 0:00:00]} 24. Rf1 {[%clk 0:00:01]}  Rb8 {[%clk 0:00:00]} 25. h3 {[%clk 0:00:01]}  Nxf2 {[%clk 0:00:00]} 26. Rxf2 {[%clk 0:00:01]}  Rc5 {[%clk 0:00:00]} 0-1


[Site "https://www.chess.com"]

[Event "Titled Tuesday Blitz May 2 Early 2023"]
[White "Ibarra Jerez, Jose Carlos"]
[Black "Postny, Evgeny"]
[WhiteFideId "2226332"]
[BlackFideId "2804344"]
[WhiteElo "2638"]
[BlackElo "2504"]
[Result "1-0"]
[Round "11"]
[TimeControl "180+2"]
[Date "2023.05.03"]
[WhiteClock "0:00:00"]
[BlackClock "0:00:00"]

1. e4 {[%clk 0:00:01]}  c5 {[%clk 0:00:01]} 2. Nf3 {[%clk 0:00:01]}  d6 {[%clk 0:00:01]} 3. c3 {[%clk 0:00:01]}  Nf6 {[%clk 0:00:01]} 4. h3 {[%clk 0:00:01]}  g6 {[%clk 0:00:01]} 5. Bd3 {[%clk 0:00:01]}  Bg7 {[%clk 0:00:01]} 6. Bc2 {[%clk 0:00:01]}  O-O {[%clk 0:00:01]} 7. d4 {[%clk 0:00:01]}  cxd4 {[%clk 0:00:01]} 8. cxd4 {[%clk 0:00:01]}  d5 {[%clk 0:00:01]} 9. e5 {[%clk 0:00:01]}  Ne4 {[%clk 0:00:01]} 10. O-O {[%clk 0:00:01]}  Nc6 {[%clk 0:00:01]} 11. Nc3 {[%clk 0:00:01]}  Nxc3 {[%clk 0:00:01]} 12. bxc3 {[%clk 0:00:01]}  f6 {[%clk 0:00:01]} 13. exf6 {[%clk 0:00:01]}  exf6 {[%clk 0:00:01]} 14. Bf4 {[%clk 0:00:01]}  Be6 {[%clk 0:00:01]} 15. Re1 {[%clk 0:00:01]}  Qd7 {[%clk 0:00:01]} 16. c4 {[%clk 0:00:01]}  Rad8 {[%clk 0:00:01]} 17. c5 {[%clk 0:00:01]}  Rfe8 {[%clk 0:00:01]} 18. Ba4 {[%clk 0:00:01]}  Bf7 {[%clk 0:00:01]} 19. Qd2 {[%clk 0:00:01]}  Rxe1+ {[%clk 0:00:01]} 20. Rxe1 {[%clk 0:00:01]}  Re8 {[%clk 0:00:01]} 21. Rb1 {[%clk 0:00:01]}  Re4 {[%clk 0:00:01]} 22. Be3 {[%clk 0:00:01]}  g5 {[%clk 0:00:00]} 23. Qb2 {[%clk 0:00:01]}  Re7 {[%clk 0:00:00]} 24. Bc2 {[%clk 0:00:00]}  Bg6 {[%clk 0:00:00]} 25. Rd1 {[%clk 0:00:00]}  Bxc2 {[%clk 0:00:00]} 26. Qxc2 {[%clk 0:00:00]}  h6 {[%clk 0:00:00]} 27. g4 {[%clk 0:00:00]}  h5 {[%clk 0:00:00]} 28. Nh2 {[%clk 0:00:00]}  Re4 {[%clk 0:00:00]} 29. Qd3 {[%clk 0:00:00]}  f5 {[%clk 0:00:00]} 30. f3 {[%clk 0:00:00]}  Re8 {[%clk 0:00:00]} 31. Bf2 {[%clk 0:00:00]}  fxg4 {[%clk 0:00:00]} 32. hxg4 {[%clk 0:00:00]}  h4 {[%clk 0:00:00]} 33. Qg6 {[%clk 0:00:00]}  Qd8 {[%clk 0:00:00]} 34. Nf1 {[%clk 0:00:00]}  Rf8 {[%clk 0:00:00]} 35. Ne3 {[%clk 0:00:00]}  Nxd4 {[%clk 0:00:00]} 36. Rxd4 {[%clk 0:00:00]}  Qe8 {[%clk 0:00:00]} 37. Qxe8 {[%clk 0:00:00]}  Rxe8 {[%clk 0:00:00]} 38. Rxd5 {[%clk 0:00:00]} 1-0


[Site "https://www.chess.com"]

[Event "Titled Tuesday Blitz May 2 Early 2023"]
[White "Hua, Lefong"]
[Black "Lenderman, Aleksandr"]
[WhiteFideId "2602253"]
[BlackFideId "2021285"]
[WhiteElo "2305"]
[BlackElo "2607"]
[Result "0-1"]
[Round "11"]
[TimeControl "180+2"]
[Date "2023.05.03"]
[WhiteClock "0:00:00"]
[BlackClock "0:00:00"]

1. d4 {[%clk 0:00:01]}  g6 {[%clk 0:00:01]} 2. c4 {[%clk 0:00:01]}  Bg7 {[%clk 0:00:01]} 3. e4 {[%clk 0:00:01]}  d6 {[%clk 0:00:01]} 4. f4 {[%clk 0:00:01]}  c5 {[%clk 0:00:01]} 5. d5 {[%clk 0:00:01]}  b5 {[%clk 0:00:01]} 6. cxb5 {[%clk 0:00:01]}  a6 {[%clk 0:00:01]} 7. Nc3 {[%clk 0:00:01]}  axb5 {[%clk 0:00:01]} 8. Bxb5+ {[%clk 0:00:01]}  Bd7 {[%clk 0:00:01]} 9. Be2 {[%clk 0:00:01]}  Bxc3+ {[%clk 0:00:01]} 10. bxc3 {[%clk 0:00:01]}  Qa5 {[%clk 0:00:01]} 11. Bd2 {[%clk 0:00:01]}  Nf6 {[%clk 0:00:00]} 12. c4 {[%clk 0:00:01]}  Qa4 {[%clk 0:00:00]} 13. Qxa4 {[%clk 0:00:01]}  Bxa4 {[%clk 0:00:00]} 14. Bd3 {[%clk 0:00:01]}  Na6 {[%clk 0:00:00]} 15. Rb1 {[%clk 0:00:01]}  O-O {[%clk 0:00:00]} 16. Nf3 {[%clk 0:00:01]}  Rfb8 {[%clk 0:00:00]} 17. Ke2 {[%clk 0:00:01]}  Nb4 {[%clk 0:00:00]} 18. a3 {[%clk 0:00:01]}  Nxd3 {[%clk 0:00:00]} 19. Kxd3 {[%clk 0:00:01]}  Rxb1 {[%clk 0:00:00]} 20. Rxb1 {[%clk 0:00:01]}  Nxe4 {[%clk 0:00:00]} 21. Rb7 {[%clk 0:00:00]}  f5 {[%clk 0:00:00]} 22. Bc1 {[%clk 0:00:00]}  Kf8 {[%clk 0:00:00]} 23. Ng5 {[%clk 0:00:00]}  Nxg5 {[%clk 0:00:00]} 24. fxg5 {[%clk 0:00:00]}  Ke8 {[%clk 0:00:00]} 25. g3 {[%clk 0:00:00]}  Bd1 {[%clk 0:00:00]} 26. h4 {[%clk 0:00:00]}  Bf3 {[%clk 0:00:00]} 27. Kc3 {[%clk 0:00:00]}  Be2 {[%clk 0:00:00]} 28. Bb2 {[%clk 0:00:00]}  Ra4 {[%clk 0:00:00]} 29. Rb8+ {[%clk 0:00:00]}  Kd7 {[%clk 0:00:00]} 30. Rh8 {[%clk 0:00:00]}  Rxc4+ {[%clk 0:00:00]} 31. Kd2 {[%clk 0:00:00]}  Bf3 {[%clk 0:00:00]} 32. Rxh7 {[%clk 0:00:00]}  Bxd5 {[%clk 0:00:00]} 33. Bf6 {[%clk 0:00:00]}  Re4 {[%clk 0:00:00]} 34. Rg7 {[%clk 0:00:00]}  Kd8 {[%clk 0:00:00]} 35. Bc3 {[%clk 0:00:00]}  f4 {[%clk 0:00:00]} 36. gxf4 {[%clk 0:00:00]}  Rxf4 {[%clk 0:00:00]} 37. Rxg6 {[%clk 0:00:00]}  Rxh4 {[%clk 0:00:00]} 38. Rh6 {[%clk 0:00:00]}  Rxh6 {[%clk 0:00:00]} 39. gxh6 {[%clk 0:00:00]}  Bg8 {[%clk 0:00:00]} 40. a4 {[%clk 0:00:00]}  e5 {[%clk 0:00:00]} 41. a5 {[%clk 0:00:00]}  Bh7 {[%clk 0:00:00]} 42. a6 {[%clk 0:00:00]}  Kc7 {[%clk 0:00:00]} 43. Ba5+ {[%clk 0:00:00]}  Kc6 {[%clk 0:00:00]} 44. Bd8 {[%clk 0:00:00]}  d5 {[%clk 0:00:00]} 45. Be7 {[%clk 0:00:00]}  c4 {[%clk 0:00:00]} 46. Bc5 {[%clk 0:00:00]}  d4 {[%clk 0:00:00]} 47. Ke2 {[%clk 0:00:00]}  c3 {[%clk 0:00:00]} 48. Kd1 {[%clk 0:00:00]}  Bg6 {[%clk 0:00:00]} 49. Kc1 {[%clk 0:00:00]}  d3 {[%clk 0:00:00]} 50. Be3 {[%clk 0:00:00]}  d2+ {[%clk 0:00:00]} 51. Bxd2 {[%clk 0:00:00]}  cxd2+ {[%clk 0:00:00]} 52. Kxd2 {[%clk 0:00:00]}  Kb6 {[%clk 0:00:00]} 53. Kc3 {[%clk 0:00:00]}  Kxa6 {[%clk 0:00:00]} 54. Kc4 {[%clk 0:00:00]}  Bh7 {[%clk 0:00:00]} 55. Kd5 {[%clk 0:00:00]}  e4 {[%clk 0:00:00]} 56. Ke6 {[%clk 0:00:00]}  Kb6 {[%clk 0:00:00]} 57. Kf7 {[%clk 0:00:00]}  e3 {[%clk 0:00:00]} 58. Kg7 {[%clk 0:00:00]}  Bb1 {[%clk 0:00:00]} 59. h7 {[%clk 0:00:00]}  Bxh7 {[%clk 0:00:00]} 60. Kxh7 {[%clk 0:00:00]}  e2 {[%clk 0:00:00]} 0-1


[Site "https://www.chess.com"]

[Event "Titled Tuesday Blitz May 2 Early 2023"]
[White "Quesada Perez, Yuniesky"]
[Black "Hnydiuk, Aleksander"]
[WhiteFideId "3504409"]
[BlackFideId "1109057"]
[WhiteElo "2585"]
[BlackElo "2374"]
[Result "1-0"]
[Round "11"]
[TimeControl "180+2"]
[Date "2023.05.03"]
[WhiteClock "0:00:00"]
[BlackClock "0:00:00"]

1. e4 {[%clk 0:00:01]}  Nf6 {[%clk 0:00:01]} 2. e5 {[%clk 0:00:01]}  Nd5 {[%clk 0:00:01]} 3. d4 {[%clk 0:00:01]}  d6 {[%clk 0:00:01]} 4. Nf3 {[%clk 0:00:01]}  dxe5 {[%clk 0:00:01]} 5. Nxe5 {[%clk 0:00:01]}  c6 {[%clk 0:00:01]} 6. Be2 {[%clk 0:00:01]}  Nd7 {[%clk 0:00:01]} 7. Nf3 {[%clk 0:00:01]}  N7f6 {[%clk 0:00:01]} 8. c4 {[%clk 0:00:01]}  Nb6 {[%clk 0:00:01]} 9. Nc3 {[%clk 0:00:01]}  Bg4 {[%clk 0:00:01]} 10. b3 {[%clk 0:00:01]}  e6 {[%clk 0:00:01]} 11. O-O {[%clk 0:00:01]}  Bb4 {[%clk 0:00:01]} 12. Bb2 {[%clk 0:00:01]}  O-O {[%clk 0:00:01]} 13. a3 {[%clk 0:00:01]}  Be7 {[%clk 0:00:01]} 14. h3 {[%clk 0:00:01]}  Bh5 {[%clk 0:00:01]} 15. Qd2 {[%clk 0:00:01]}  Qc7 {[%clk 0:00:01]} 16. Rad1 {[%clk 0:00:01]}  Rad8 {[%clk 0:00:01]} 17. Qe3 {[%clk 0:00:01]}  a6 {[%clk 0:00:01]} 18. Rfe1 {[%clk 0:00:01]}  c5 {[%clk 0:00:01]} 19. Ne4 {[%clk 0:00:01]}  Nxe4 {[%clk 0:00:01]} 20. Qxe4 {[%clk 0:00:01]}  Bf6 {[%clk 0:00:01]} 21. g4 {[%clk 0:00:01]}  Bg6 {[%clk 0:00:01]} 22. Qe3 {[%clk 0:00:01]}  Rfe8 {[%clk 0:00:01]} 23. Bf1 {[%clk 0:00:01]}  a5 {[%clk 0:00:01]} 24. g5 {[%clk 0:00:01]}  Be7 {[%clk 0:00:01]} 25. Ne5 {[%clk 0:00:01]}  a4 {[%clk 0:00:00]} 26. dxc5 {[%clk 0:00:00]}  Bxc5 {[%clk 0:00:00]} 27. Qc3 {[%clk 0:00:00]}  Bf8 {[%clk 0:00:00]} 28. b4 {[%clk 0:00:00]}  Bf5 {[%clk 0:00:00]} 29. h4 {[%clk 0:00:00]}  Rxd1 {[%clk 0:00:00]} 30. Rxd1 {[%clk 0:00:00]}  Rd8 {[%clk 0:00:00]} 31. Rxd8 {[%clk 0:00:00]}  Qxd8 {[%clk 0:00:00]} 32. Qd4 {[%clk 0:00:00]}  Qc7 {[%clk 0:00:00]} 33. h5 {[%clk 0:00:00]}  Nc8 {[%clk 0:00:00]} 34. h6 {[%clk 0:00:00]}  Ne7 {[%clk 0:00:00]} 35. Nd7 {[%clk 0:00:00]}  Nc6 {[%clk 0:00:00]} 36. Qd2 {[%clk 0:00:00]}  Bd6 {[%clk 0:00:00]} 37. c5 {[%clk 0:00:00]}  Bh2+ {[%clk 0:00:00]} 38. Kh1 {[%clk 0:00:00]}  Bf4 {[%clk 0:00:00]} 39. Qd1 {[%clk 0:00:00]}  e5 {[%clk 0:00:00]} 40. Nb6 {[%clk 0:00:00]}  Bxg5 {[%clk 0:00:00]} 41. hxg7 {[%clk 0:00:00]}  Bf4 {[%clk 0:00:00]} 42. Bg2 {[%clk 0:00:00]}  Qe7 {[%clk 0:00:00]} 43. Qh5 {[%clk 0:00:00]}  Qf6 {[%clk 0:00:00]} 44. Nd5 {[%clk 0:00:00]}  Qg6 {[%clk 0:00:00]} 45. Nxf4 {[%clk 0:00:00]}  exf4 {[%clk 0:00:00]} 46. Qf3 {[%clk 0:00:00]}  Qe6 {[%clk 0:00:00]} 47. b5 {[%clk 0:00:00]}  Na5 {[%clk 0:00:00]} 48. Qxf4 {[%clk 0:00:00]} 1-0


[Site "https://www.chess.com"]